bitfinex/quotes_BTCUSD_20250730
["timestamp","ask_amount","ask_price","bid_price","bid_amount"]
[1753862687821,0.32770672,118340.0,118330.0,6.87878439]
[1753862688974,0.32770672,118340.0,118330.0,7.11044648]
[1753862693765,0.32770672,118340.0,118330.0,7.06044648]
[1753862694006,0.32770672,118340.0,118330.0,7.11044648]
[1753862695632,0.32770672,118340.0,118330.0,6.6471223]
[1753862695862,0.32770672,118340.0,118330.0,6.6470823]
[1753862696116,0.32770672,118340.0,118330.0,6.87874439]
[1753862701600,0.32770672,118340.0,118330.0,7.11040648]
[1753862702045,0.32770672,118340.0,118330.0,6.87874439]
[1753862703388,0.32770672,118340.0,118330.0,6.82874439]
[1753862703612,0.32770672,118340.0,118330.0,7.11040648]
[1753862705271,0.32770672,118340.0,118330.0,7.06040648]
[1753862705480,0.32770672,118340.0,118330.0,7.11040648]
[1753862707171,0.32770672,118340.0,118330.0,7.06040648]
[1753862707379,0.32770672,118340.0,118330.0,7.11040648]
[1753862708713,0.32770672,118340.0,118330.0,6.87874439]
[1753862709334,0.32770672,118340.0,118330.0,7.11040648]
[1753862709547,0.32770672,118340.0,118330.0,7.06040648]
[1753862709751,0.32770672,118340.0,118330.0,7.11040648]
[1753862711882,0.32770672,118340.0,118330.0,6.98212648]
[1753862712117,0.32770672,118340.0,118330.0,6.82874439]
[1753862712333,0.32770672,118340.0,118330.0,6.82606986]
[1753862712568,0.32770672,118340.0,118330.0,6.59440777]
[1753862712714,0.32770672,118340.0,118330.0,6.82606986]
[1753862713146,0.32770672,118340.0,118330.0,6.59440777]
[1753862713357,0.32770672,118340.0,118330.0,6.82606986]
[1753862717738,0.32770672,118340.0,118330.0,6.69778986]
[1753862717969,0.61711881,118340.0,118330.0,6.49937538]
[1753862718186,0.62009881,118340.0,118330.0,6.45782618]
[1753862718394,0.38843672,118340.0,118330.0,6.52472726]
[1753862718807,0.38843672,118340.0,118330.0,6.75638935]
[1753862719017,0.38843672,118340.0,118330.0,6.62814935]
[1753862719238,0.38843672,118340.0,118330.0,6.75638935]
[1753862723984,0.38545672,118340.0,118330.0,6.75638935]
[1753862725337,0.38545672,118340.0,118330.0,6.52472726]
[1753862725543,0.38545672,118340.0,118330.0,6.75638935]
[1753862725760,0.38545672,118340.0,118330.0,6.78208935]
[1753862725761,0.32980672,118340.0,118330.0,6.78208935]
[1753862725964,0.32980672,118340.0,118330.0,6.78521935]
[1753862726776,0.32980672,118340.0,118330.0,6.55355726]
[1753862726982,0.32980672,118340.0,118330.0,6.78521935]
[1753862727161,0.35441672,118340.0,118330.0,6.78521935]
[1753862729401,0.32980672,118340.0,118330.0,6.78521935]
[1753862730722,0.32770672,118340.0,118330.0,6.78521935]
[1753862732304,0.32770672,118340.0,118330.0,6.80111935]
[1753862732557,0.32770672,118340.0,118330.0,7.04918144]
[1753862734496,0.32770672,118340.0,118330.0,6.81751935]
[1753862734712,0.32770672,118340.0,118330.0,6.58585726]
[1753862734918,0.32982672,118340.0,118330.0,6.62814935]
[1753862735125,0.35443672,118340.0,118330.0,6.75638935]
[1753862735575,0.32770672,118340.0,118330.0,6.81761935]
[1753862742225,0.32770672,118340.0,118330.0,6.61453935]
[1753862749295,0.32770672,118340.0,118330.0,6.38287726]
[1753862749518,0.32770672,118340.0,118330.0,6.59843935]
[1753862751272,0.32770672,118340.0,118330.0,6.61463935]
[1753862753916,0.32770672,118340.0,118330.0,6.84630144]
[1753862760314,0.32770672,118340.0,118330.0,6.61463935]
[1753862760525,0.32770672,118340.0,118330.0,6.59843935]
[1753862761590,0.32971672,118340.0,118330.0,6.19340726]
[1753862761798,0.32971672,118340.0,118330.0,6.25474618]
[1753862761799,0.62032881,118340.0,118330.0,6.25474618]
[1753862762008,0.62032881,118340.0,118330.0,6.31319675]
[1753862762215,0.62032881,118340.0,118330.0,6.30474617]
[1753862762593,0.40094105,118340.0,118330.0,6.31319682]
[1753862762849,0.38866672,118340.0,118330.0,6.31319682]
[1753862763027,0.38866672,118340.0,118330.0,6.32164733]
[1753862763228,0.38866672,118340.0,118330.0,6.18495682]
[1753862763435,0.38866672,118340.0,118330.0,6.31319689]
[1753862763576,0.38866672,118340.0,118330.0,6.18495689]
[1753862763782,0.38866672,118340.0,118330.0,6.31319689]
[1753862763983,0.38866672,118340.0,118330.0,6.32164754]
[1753862764185,0.38866672,118340.0,118330.0,6.33009805]
[1753862764747,0.38866672,118340.0,118330.0,6.32164711]
[1753862764926,0.38866672,118340.0,118330.0,6.33009755]
[1753862765127,0.38866672,118340.0,118330.0,6.32164718]
[1753862765331,0.38866672,118340.0,118330.0,6.31319653]
[1753862766089,0.38866672,118340.0,118330.0,6.25474596]
[1753862766523,0.38866672,118340.0,118330.0,6.32164704]
[1753862767184,0.38866672,118340.0,118330.0,6.31319653]
[1753862767797,0.38866672,118340.0,118330.0,6.32164704]
[1753862768004,0.38866672,118340.0,118330.0,6.31319653]
[1753862768213,0.38866672,118340.0,118330.0,6.32164704]
[1753862768650,0.38866672,118340.0,118330.0,6.31319653]
[1753862769321,0.38866672,118340.0,118330.0,6.32164704]
[1753862769804,0.38545672,118340.0,118330.0,6.32164704]
[1753862770409,0.38545672,118340.0,118330.0,6.33009748]
[1753862771537,0.38545672,118340.0,118330.0,6.31319653]
[1753862771751,0.38545672,118340.0,118330.0,6.32164704]
[1753862772984,0.38545672,118340.0,118330.0,6.31319653]
[1753862773195,0.38545672,118340.0,118330.0,6.32164704]
[1753862773404,0.38545672,118340.0,118330.0,6.33009748]
[1753862773818,0.38545672,118340.0,118330.0,6.32164704]
[1753862774156,0.38545672,118340.0,118330.0,6.34564704]
[1753862775592,0.38545672,118340.0,118330.0,6.33719653]
[1753862775806,0.38545672,118340.0,118330.0,6.34564704]
[1753862776023,0.38545672,118340.0,118330.0,6.33719653]
[1753862776295,0.38545672,118340.0,118330.0,6.32874595]
[1753862776513,0.38866672,118340.0,118330.0,6.3047461]
[1753862776742,0.38545672,118340.0,118330.0,6.29677086]
[1753862776963,0.38545672,118340.0,118330.0,6.30522151]
[1753862777178,0.38545672,118340.0,118330.0,6.31367209]
[1753862778333,0.38545672,118340.0,118330.0,6.30522151]
[1753862778579,0.38545672,118340.0,118330.0,6.3460326]
[1753862779040,0.38545672,118340.0,118330.0,6.33959209]
[1753862779675,0.38545672,118340.0,118330.0,6.33114151]
[1753862780240,0.38545672,118340.0,118330.0,6.33959209]
[1753862780452,0.38545672,118340.0,118330.0,6.35126253]
[1753862780655,0.36935672,118340.0,118330.0,6.34281209]
[1753862781057,0.34491672,118340.0,118330.0,6.34281209]
[1753862781341,0.32971672,118340.0,118330.0,6.34281209]
[1753862782216,0.32770672,118340.0,118330.0,6.66021937]
[1753862782443,0.32770672,118340.0,118330.0,6.65176893]
[1753862782582,0.32770672,118340.0,118330.0,6.3512621]
[1753862783193,0.32770672,118340.0,118330.0,6.33436115]
[1753862783403,0.32770672,118340.0,118330.0,6.34281159]
[1753862783626,0.32770672,118340.0,118330.0,6.34281166]
[1753862784019,0.32770672,118340.0,118330.0,6.3676621]
[1753862784447,0.32770672,118340.0,118330.0,6.67661937]
[1753862785011,0.32770672,118340.0,118330.0,6.59934627]
[1753862785683,0.32770672,118340.0,118330.0,6.61514627]
[1753862786593,0.32770672,118340.0,118330.0,6.34231057]
[1753862786813,0.32770672,118340.0,118330.0,6.58244518]
[1753862788313,0.32770672,118340.0,118330.0,6.59904518]
[1753862788871,0.32770672,118340.0,118330.0,6.59904525]
[1753862789077,0.32770672,118340.0,118330.0,6.58244525]
[1753862789281,0.32770672,118340.0,118330.0,6.59089569]
[1753862789911,0.32770672,118340.0,118330.0,6.58244532]
[1753862790112,0.32770672,118340.0,118330.0,6.59089583]
[1753862790310,0.32770672,118340.0,118330.0,6.59934627]
[1753862790683,0.35310172,118340.0,118330.0,6.59934627]
[1753862791154,0.35310172,118340.0,118330.0,6.61594627]
[1753862792211,0.35310172,118340.0,118330.0,6.59089583]
[1753862793332,0.35310172,118340.0,118330.0,6.34231057]
[1753862793544,0.35310172,118340.0,118330.0,6.59089583]
[1753862793970,0.35310172,118340.0,118330.0,6.35921166]
[1753862794191,0.35310172,118340.0,118330.0,6.59089583]
[1753862795815,0.35310172,118340.0,118330.0,6.59934627]
[1753862796293,0.35310172,118340.0,118330.0,6.61554627]
[1753862798259,0.35310172,118340.0,118330.0,6.61406627]
[1753862798475,0.35310172,118340.0,118330.0,6.60561583]
[1753862798702,0.35310172,118340.0,118330.0,6.34928115]
[1753862798936,0.35310172,118340.0,118330.0,6.58096532]
[1753862799161,0.35310172,118340.0,118330.0,6.58941583]
[1753862799589,0.35310172,118340.0,118330.0,6.58096532]
[1753862800065,0.35310172,118340.0,118330.0,6.58941583]
[1753862800291,0.35310172,118340.0,118330.0,6.59786627]
[1753862800469,0.35310172,118340.0,118330.0,6.58941583]
[1753862802776,0.35310172,118340.0,118330.0,6.59786627]
[1753862803379,0.35310172,118340.0,118330.0,6.58096532]
[1753862803834,0.35310172,118340.0,118330.0,6.57251503]
[1753862804049,0.35310172,118340.0,118330.0,6.55611503]
[1753862804479,0.35310172,118340.0,118330.0,6.53921337]
[1753862804694,0.37934172,118340.0,118330.0,6.56456568]
[1753862805413,0.35507172,118340.0,118330.0,6.57301626]
[1753862805669,0.35310172,118340.0,118330.0,6.58146677]
[1753862806982,0.35310172,118340.0,118330.0,6.55611503]
[1753862807330,0.35310172,118340.0,118330.0,6.56456568]
[1753862808515,0.35310172,118340.0,118330.0,6.58146663]
[1753862808746,0.35310172,118340.0,118330.0,6.61216663]
[1753862814170,0.35310172,118340.0,118330.0,6.61216677]
[1753862814394,0.35310172,118340.0,118330.0,6.61216627]
[1753862816063,0.32770672,118340.0,118330.0,6.61216627]
[1753862822755,0.32770672,118340.0,118330.0,6.84385044]
[1753862828697,0.32770672,118340.0,118330.0,6.3804821]
[1753862828903,0.32770672,118340.0,118330.0,6.61216627]
[1753862829108,0.32770672,118340.0,118330.0,6.61212627]
[1753862832369,0.32770672,118340.0,118330.0,6.3804421]
[1753862832744,0.32770672,118340.0,118330.0,6.61212627]
[1753862835718,0.32770672,118340.0,118330.0,6.84381044]
[1753862852531,0.32770672,118340.0,118330.0,7.04685044]
[1753862853408,0.32770672,118340.0,118330.0,6.5834821]
[1753862853635,0.32770672,118340.0,118330.0,7.04685044]
[1753862855264,0.32770672,118340.0,118330.0,6.81516627]
[1753862855904,0.32770672,118340.0,118330.0,6.5834821]
[1753862856085,0.32770672,118340.0,118330.0,6.81516627]
[1753862857939,0.32770672,118340.0,118330.0,7.04685044]
[1753862863675,0.32770672,118340.0,118330.0,7.06429946]
[1753862864311,0.32770672,118340.0,118330.0,7.06313946]
[1753862871693,0.32770672,118340.0,118330.0,7.34482363]
[1753862872726,0.32770672,118340.0,118330.0,7.34182363]
[1753862872969,0.32770672,118340.0,118330.0,7.33882363]
[1753862873157,0.32770672,118340.0,118330.0,7.11113946]
[1753862873385,0.32770672,118340.0,118330.0,7.11513946]
[1753862883298,0.00180069,118350.0,118330.0,7.11513946]
[1753862883299,0.00180069,118350.0,118340.0,1.03935589]
[1753862883525,0.00180069,118350.0,118340.0,1.25405319]
[1753862883748,0.00180069,118350.0,118340.0,1.27982319]
[1753862884171,1e-08,118350.0,118340.0,1.28982319]
[1753862886154,1e-08,118350.0,118340.0,1.29682319]
[1753862886377,1e-08,118350.0,118340.0,1.50549531]
[1753862886589,1e-08,118350.0,118340.0,2.38054782]
[1753862886771,1e-08,118350.0,118340.0,2.64054782]
[1753862887203,1e-08,118350.0,118340.0,1.94549531]
[1753862888080,0.01174538,118370.0,118340.0,1.8376455]
[1753862888314,0.01174538,118370.0,118360.0,0.71702152]
[1753862888534,1e-08,118370.0,118360.0,2.24660654]
[1753862888751,1e-08,118370.0,118360.0,2.25182654]
[1753862888984,1e-08,118370.0,118360.0,1.57942403]
[1753862889222,1e-08,118370.0,118360.0,1.60429548]
[1753862889466,1e-08,118370.0,118360.0,1.68877278]
[1753862889924,1e-08,118370.0,118360.0,1.7082218]
[1753862890141,1e-08,118370.0,118360.0,1.7102218]
[1753862892323,1e-08,118370.0,118360.0,1.7082218]
[1753862892812,1e-08,118370.0,118360.0,1.7092218]
[1753862894763,1e-08,118370.0,118360.0,2.40427431]
[1753862894981,1e-08,118370.0,118360.0,1.7092218]
[1753862895198,1e-08,118370.0,118360.0,1.9492218]
[1753862895419,1e-08,118370.0,118360.0,1.8292218]
[1753862896407,1e-08,118370.0,118360.0,2.52427431]
[1753862896837,1e-08,118370.0,118360.0,1.75115125]
[1753862898712,1e-08,118370.0,118360.0,1.75015125]
[1753862898913,1e-08,118370.0,118360.0,1.74815125]
[1753862899123,1e-08,118370.0,118360.0,1.75115125]
[1753862899349,1e-08,118370.0,118360.0,1.75315125]
[1753862902605,1e-08,118370.0,118360.0,2.01525125]
[1753862904652,1e-08,118370.0,118360.0,2.04062625]
[1753862911107,1e-08,118390.0,118380.0,0.34428869]
[1753862911318,0.0032,118400.0,118390.0,0.2117213]
[1753862911525,0.0032,118400.0,118390.0,0.98792957]
[1753862911741,0.00526,118400.0,118390.0,0.98792957]
[1753862912463,0.01320351,118400.0,118390.0,0.98792957]
[1753862913349,0.03111351,118400.0,118390.0,0.98792957]
[1753862914847,0.03111351,118400.0,118390.0,0.98892957]
[1753862915327,0.01000351,118400.0,118390.0,1.04734541]
[1753862915554,0.01000351,118400.0,118390.0,1.39611639]
[1753862915776,0.01000351,118400.0,118390.0,1.08762541]
[1753862917102,0.00210836,118400.0,118390.0,1.08762541]
[1753862919134,0.00210836,118400.0,118390.0,1.07132541]
[1753862919735,0.00210836,118400.0,118390.0,1.04734541]
[1753862919969,0.02321836,118400.0,118390.0,1.04734541]
[1753862920403,0.00210836,118400.0,118390.0,1.07132541]
[1753862920834,0.00210836,118400.0,118390.0,1.22554753]
[1753862922914,0.00210836,118400.0,118390.0,1.07130218]
[1753862927061,0.00210836,118400.0,118390.0,1.07638218]
[1753862927862,0.00210836,118400.0,118390.0,1.07335218]
[1753862929045,0.00210836,118400.0,118390.0,0.76488443]
[1753862929258,0.00210836,118400.0,118390.0,1.07335218]
[1753862929474,0.00210836,118400.0,118390.0,1.07640218]
[1753862929831,0.00210836,118400.0,118390.0,1.07544218]
[1753862934198,0.00210836,118400.0,118390.0,0.76697443]
[1753862934406,0.00210836,118400.0,118390.0,1.07544218]
[1753862937538,4.836e-05,118400.0,118390.0,1.07544218]
[1753862939116,4.836e-05,118400.0,118390.0,1.09124218]
[1753862940845,4.836e-05,118400.0,118390.0,1.07544218]
[1753862943029,4.836e-05,118400.0,118390.0,1.24476773]
[1753862943249,4.836e-05,118400.0,118390.0,1.26056773]
[1753862944572,4.836e-05,118400.0,118390.0,1.24476773]
[1753862953590,4.836e-05,118400.0,118390.0,0.78207443]
[1753862953820,4.836e-05,118400.0,118390.0,0.91002524]
[1753862953821,0.03265836,118400.0,118390.0,0.91002524]
[1753862954051,0.05376836,118400.0,118390.0,0.6286786]
[1753862954305,0.05376836,118400.0,118390.0,0.89353622]
[1753862955230,0.03585836,118400.0,118390.0,0.89353622]
[1753862955442,0.03585836,118400.0,118390.0,0.76405622]
[1753862955696,0.03585836,118400.0,118390.0,0.91823622]
[1753862955889,0.03265836,118400.0,118390.0,0.91823622]
[1753862956097,0.03265836,118400.0,118390.0,0.78863622]
[1753862956312,0.03265836,118400.0,118390.0,0.91827622]
[1753862956515,0.03265836,118400.0,118390.0,0.68692957]
[1753862956725,0.03265836,118400.0,118390.0,0.91827622]
[1753862962233,0.03265836,118400.0,118390.0,0.68692957]
[1753862962440,0.03265836,118400.0,118390.0,0.91827622]
[1753862963198,0.03265836,118400.0,118390.0,0.66234957]
[1753862963403,0.05355836,118400.0,118390.0,0.89369622]
[1753862963636,0.03564836,118400.0,118390.0,0.89369622]
[1753862963869,0.03265836,118400.0,118390.0,0.91845622]
[1753862964060,0.03265836,118400.0,118390.0,0.68710957]
[1753862964437,0.03265836,118400.0,118390.0,0.91845622]
[1753862965458,0.03265836,118400.0,118390.0,0.53270957]
[1753862965674,0.05355836,118400.0,118390.0,0.89353622]
[1753862967162,0.05355836,118400.0,118390.0,0.66218957]
[1753862967393,0.05355836,118400.0,118390.0,0.84353623]
[1753862967616,0.05355836,118400.0,118390.0,0.48270958]
[1753862967841,0.28490501,118400.0,118390.0,0.65370356]
[1753862968067,0.28490501,118400.0,118390.0,0.4178773]
[1753862968285,0.05355836,118400.0,118390.0,0.60370343]
[1753862968519,0.05355836,118400.0,118390.0,0.66214965]
[1753862968708,0.05355836,118400.0,118390.0,0.66214972]
[1753862969609,0.05355836,118400.0,118390.0,0.60370357]
[1753862969791,0.05355836,118400.0,118390.0,0.61214994]
[1753862971572,0.05355836,118400.0,118390.0,0.60370357]
[1753862971760,0.05355836,118400.0,118390.0,0.62059638]
[1753862972588,0.05355836,118400.0,118390.0,0.61215001]
[1753862972797,0.05355836,118400.0,118390.0,0.60370357]
[1753862973005,0.28490501,118400.0,118390.0,0.33843729]
[1753862973214,0.53314247,118400.0,118390.0,0.4179573]
[1753862973444,0.31024155,118400.0,118390.0,0.4179573]
[1753862973905,0.31024155,118400.0,118390.0,0.2884373]
[1753862974137,0.31024155,118400.0,118390.0,0.46795729]
[1753862974138,0.890034,118400.0,118390.0,0.46795729]
[1753862974390,0.92386194,118400.0,118390.0,0.46795729]
[1753862975070,0.69251529,118400.0,118390.0,0.46795729]
[1753862975308,0.67562355,118400.0,118390.0,0.46795729]
[1753862976300,0.68406949,118400.0,118390.0,0.46795729]
[1753862977016,0.67562355,118400.0,118390.0,0.46795729]
[1753862977221,0.9069702,118400.0,118390.0,0.46795729]
[1753862977436,0.91541607,118400.0,118390.0,0.33843729]
[1753862977646,1.11970074,118400.0,118390.0,0.46791729]
[1753862978070,0.65700744,118400.0,118390.0,0.46791729]
[1753862978281,1.11970074,118400.0,118390.0,0.46791729]
[1753862978484,0.65700744,118400.0,118390.0,0.46791729]
[1753862978708,1.11970074,118400.0,118390.0,0.46791729]
[1753862980477,1.11125501,118400.0,118390.0,0.46791729]
[1753862983914,0.64856171,118400.0,118390.0,0.46791729]
[1753862984130,1.00502854,118400.0,118390.0,0.46791729]
[1753862984347,0.77368189,118400.0,118390.0,0.46791729]
[1753862984560,1.01347448,118400.0,118390.0,0.46791729]
[1753862985009,1.00502854,118400.0,118390.0,0.46791729]
[1753862985219,0.76421726,118400.0,118390.0,0.46791729]
[1753862985442,0.99556391,118400.0,118390.0,0.49267729]
[1753862985658,1.08004121,118400.0,118390.0,0.49267729]
[1753862985876,1.08848708,118400.0,118390.0,0.49267729]
[1753862986758,1.08004121,118400.0,118390.0,0.49267729]
[1753862986963,1.07705121,118400.0,118390.0,0.49267729]
[1753862989552,0.99257391,118400.0,118390.0,0.49267729]
[1753862990681,1.00101985,118400.0,118390.0,0.49267729]
[1753862990907,1.2323665,118400.0,118390.0,0.49267729]
[1753862991783,1.2532265,118400.0,118390.0,0.46791729]
[1753862992206,1.00396985,118400.0,118390.0,0.49258729]
[1753862992407,1.00101985,118400.0,118390.0,0.49258729]
[1753862992615,1.01650345,118400.0,118390.0,0.49258729]
[1753862993828,1.00101985,118400.0,118390.0,0.49258729]
[1753862994980,1.2323665,118400.0,118390.0,0.49258729]
[1753862995225,1.40128541,118400.0,118390.0,0.49258729]
[1753862995412,1.40128541,118400.0,118390.0,0.46791729]
[1753862996046,1.40128541,118400.0,118390.0,0.46715729]
[1753862996267,1.40128541,118400.0,118390.0,0.49182729]
[1753862996691,1.48576271,118400.0,118390.0,0.49182729]
[1753862997281,1.47731727,118400.0,118390.0,0.49182729]
[1753862997685,1.46887161,118400.0,118390.0,0.46715729]
[1753862997905,1.48973161,118400.0,118390.0,0.33767729]
[1753862998115,1.51147318,118400.0,118390.0,0.46687729]
[1753862998326,1.49566209,118400.0,118390.0,0.46687729]
[1753862998507,1.51147671,118400.0,118390.0,0.46687729]
[1753862999360,1.51147671,118400.0,118390.0,0.33316]
[1753862999594,1.75073238,118400.0,118390.0,0.1302]
[1753863000038,1.75073238,118400.0,118390.0,0.001]
[1753863000039,2.72665865,118400.0,118390.0,0.001]
[1753863000250,0.56682871,118390.0,118380.0,0.12924]
[1753863000478,1.58882073,118390.0,118380.0,0.12924]
[1753863000715,1.71806073,118390.0,118380.0,0.12924]
[1753863000915,1.56426015,118390.0,118380.0,0.12924]
[1753863001088,1.58905743,118390.0,118380.0,0.12924]
[1753863001738,1.28116471,118390.0,118380.0,0.12924]
[1753863001953,1.59005743,118390.0,118380.0,0.12924]
[1753863002415,0.20899468,118380.0,118370.0,0.17923999]
[1753863002596,0.99270882,118380.0,118370.0,0.17923999]
[1753863002820,0.97184882,118380.0,118370.0,0.20390999]
[1753863003025,0.98029597,118380.0,118370.0,0.20390999]
[1753863003239,0.98874334,118380.0,118370.0,0.20390999]
[1753863003881,0.98974334,118380.0,118370.0,0.20390999]
[1753863004313,0.99174334,118380.0,118370.0,0.20390999]
[1753863004517,0.97592872,118380.0,118370.0,0.20390999]
[1753863004919,0.99172456,118380.0,118370.0,0.20390999]
[1753863005978,1.01711556,118380.0,118370.0,0.20390999]
[1753863006405,1.00866841,118380.0,118370.0,0.20600999]
[1753863006813,1.00866841,118380.0,118370.0,0.20390999]
[1753863007045,1.02108118,118380.0,118370.0,0.17923999]
[1753863007253,0.34844822,118360.0,118350.0,0.02767]
[1753863007467,1.0799323,118360.0,118350.0,0.29360729]
[1753863007672,1.27425419,118360.0,118350.0,0.2436073]
[1753863007893,0.01689816,118350.0,118340.0,0.303]
[1753863008092,1.0120901,118350.0,118340.0,0.57193729]
[1753863008312,1.0965674,118350.0,118340.0,0.57193729]
[1753863008509,1.0965674,118350.0,118340.0,0.59675261]
[1753863009249,0.79612405,118350.0,118340.0,0.59675261]
[1753863009488,0.78767468,118350.0,118340.0,0.59675261]
[1753863009660,0.79612412,118350.0,118340.0,0.59675261]
[1753863010188,1.10501677,118350.0,118340.0,0.59675261]
[1753863010421,1.12669562,118350.0,118340.0,0.59675261]
[1753863010622,1.13519103,118350.0,118340.0,0.59675261]
[1753863010818,1.13519103,118350.0,118340.0,0.59775261]
[1753863011045,1.14364032,118350.0,118340.0,0.59875261]
[1753863011250,0.73337186,118350.0,118340.0,0.59875261]
[1753863011482,0.74182094,118350.0,118340.0,0.59875261]
[1753863011950,0.75875627,118350.0,118340.0,0.59875261]
[1753863012409,0.75030712,118350.0,118340.0,0.59875261]
[1753863012630,0.75875627,118350.0,118340.0,0.59875261]
[1753863013280,0.84323357,118350.0,118340.0,0.59875261]
[1753863013970,0.85168279,118350.0,118340.0,0.59875261]
[1753863014625,0.86013216,118350.0,118340.0,0.59875261]
[1753863014847,1.16255587,118350.0,118340.0,0.59365261]
[1753863015068,0.84521378,118350.0,118340.0,0.59365261]
[1753863015291,0.83675051,118350.0,118340.0,0.59365261]
[1753863015638,0.83675051,118350.0,118340.0,0.59875261]
[1753863015844,0.83675016,118350.0,118340.0,0.59875261]
[1753863016062,0.83477016,118350.0,118340.0,0.59875261]
[1753863016671,0.84321924,118350.0,118340.0,0.59875261]
[1753863016821,0.85166846,118350.0,118340.0,0.59875261]
[1753863017255,0.84321924,118350.0,118340.0,0.59875261]
[1753863018520,0.85166846,118350.0,118340.0,0.59875261]
[1753863019511,0.85166803,118350.0,118340.0,0.59875261]
[1753863019738,0.84533881,118350.0,118340.0,0.59875261]
[1753863019902,0.83688973,118350.0,118340.0,0.59875261]
[1753863020759,0.83476973,118350.0,118340.0,0.61515261]
[1753863023144,0.84321888,118350.0,118340.0,0.61515261]
[1753863023367,0.83477715,118350.0,118340.0,0.61515261]
[1753863023605,0.82632814,118350.0,118340.0,0.61515261]
[1753863023835,0.83477715,118350.0,118340.0,0.61515261]
[1753863024069,0.8432263,118350.0,118340.0,0.61515261]
[1753863024591,0.8453463,118350.0,118340.0,0.59365261]
[1753863025054,0.83689715,118350.0,118340.0,0.59365261]
[1753863025292,0.8453463,118350.0,118340.0,0.59365261]
[1753863025527,0.8453463,118350.0,118340.0,0.59577261]
[1753863025799,0.83689715,118350.0,118340.0,0.59885261]
[1753863026044,0.84534623,118350.0,118340.0,0.59885261]
[1753863026290,0.83689715,118350.0,118340.0,0.59885261]
[1753863026763,0.83689708,118350.0,118340.0,0.59885261]
[1753863027034,0.83689708,118350.0,118340.0,0.61455261]
[1753863028443,0.82632814,118350.0,118340.0,0.61455261]
[1753863028655,0.82632814,118350.0,118340.0,0.63025261]
[1753863029091,0.83477715,118350.0,118340.0,0.63025261]
[1753863029305,0.83423406,118350.0,118340.0,0.63025261]
[1753863029511,0.82578519,118350.0,118340.0,0.63025261]
[1753863029729,0.83423406,118350.0,118340.0,0.63025261]
[1753863030423,0.82578519,118350.0,118340.0,0.79925717]
[1753863030670,0.82578519,118350.0,118340.0,0.80770732]
[1753863031159,0.82578519,118350.0,118340.0,0.79925717]
[1753863031604,0.82578519,118350.0,118340.0,0.59625717]
[1753863031826,0.82578519,118350.0,118340.0,0.60470739]
[1753863032045,0.82578519,118350.0,118340.0,0.61315754]
[1753863032289,0.82578519,118350.0,118340.0,0.60470739]
[1753863033162,0.82578519,118350.0,118340.0,0.59625717]
[1753863033387,0.82578519,118350.0,118340.0,0.42725261]
[1753863033990,0.81787927,118350.0,118340.0,0.60470739]
[1753863034408,0.82579021,118350.0,118340.0,0.59625717]
[1753863034811,0.82579021,118350.0,118340.0,0.82793284]
[1753863035175,0.82579021,118350.0,118340.0,0.65892828]
[1753863036496,0.82579021,118350.0,118340.0,0.83638292]
[1753863036698,0.82579021,118350.0,118340.0,0.83638299]
[1753863037136,0.82579021,118350.0,118340.0,0.82793284]
[1753863037334,0.82579021,118350.0,118340.0,0.83638306]
[1753863037769,0.82579021,118350.0,118340.0,0.82793284]
[1753863038012,0.82579021,118350.0,118340.0,0.83638306]
[1753863038601,0.82579021,118350.0,118340.0,0.82793284]
[1753863039480,0.82579021,118350.0,118340.0,0.83638306]
[1753863040075,0.82579021,118350.0,118340.0,0.82793284]
[1753863040286,0.74131291,118350.0,118340.0,1.08495868]
[1753863040452,0.73340197,118350.0,118340.0,1.09340847]
[1753863040652,0.73340197,118350.0,118340.0,1.08495868]
[1753863041099,0.73340197,118350.0,118340.0,1.09340847]
[1753863041488,0.73340197,118350.0,118340.0,1.08495868]
[1753863041745,0.73340197,118350.0,118340.0,1.09340847]
[1753863041914,0.73340197,118350.0,118340.0,1.10185819]
[1753863042120,0.38501452,118350.0,118340.0,1.10185819]
[1753863042323,0.38501452,118350.0,118340.0,1.33353386]
[1753863042597,0.36918141,118350.0,118340.0,1.10185819]
[1753863042780,0.34378741,118350.0,118340.0,1.10185819]
[1753863042993,0.33785,118350.0,118340.0,1.10185819]
[1753863044063,0.33785,118350.0,118340.0,0.63850685]
[1753863044264,0.33785,118350.0,118340.0,1.10185819]
[1753863044885,0.33785,118350.0,118340.0,0.9473275]
[1753863045314,0.33785,118350.0,118340.0,0.93887778]
[1753863045967,0.37248786,118350.0,118340.0,0.63005713]
[1753863046180,0.37248786,118350.0,118340.0,0.93887778]
[1753863046597,0.33785,118350.0,118340.0,0.93887778]
[1753863051468,0.33785,118350.0,118340.0,0.93887785]
[1753863051837,0.33785,118350.0,118340.0,0.42205261]
[1753863051838,0.34840887,118350.0,118340.0,0.42205261]
[1753863052068,0.87247768,118350.0,118340.0,0.18662262]
[1753863052335,0.89632881,118350.0,118340.0,0.31550262]
[1753863052594,1.00620111,118350.0,118340.0,0.31550262]
[1753863052820,0.52838947,118350.0,118340.0,0.36550261]
[1753863053029,0.68992912,118350.0,118340.0,0.36550261]
[1753863053252,0.69718025,118350.0,118340.0,0.31550262]
[1753863053691,0.52818997,118350.0,118340.0,0.31550262]
[1753863053899,0.53663948,118350.0,118340.0,0.31550262]
[1753863055624,0.87663941,118350.0,118340.0,0.36550261]
[1753863056073,1.04563012,118350.0,118340.0,0.36550261]
[1753863056657,1.34600155,118350.0,118340.0,0.28102531]
[1753863057743,1.36773518,118350.0,118340.0,0.28102531]
[1753863060148,1.05891453,118350.0,118340.0,0.28102531]
[1753863060355,1.05046516,118350.0,118340.0,0.28102531]
[1753863061836,1.05046516,118350.0,118340.0,0.28042531]
[1753863062459,1.04201572,118350.0,118340.0,0.28042531]
[1753863062706,0.84937473,118350.0,118340.0,0.28042531]
[1753863062908,0.82846473,118350.0,118340.0,0.30342531]
[1753863063319,0.81265845,118350.0,118340.0,0.30342531]
[1753863065573,0.98164873,118350.0,118340.0,0.30342531]
[1753863066460,0.82110739,118350.0,118340.0,0.30342531]
[1753863067463,0.99009767,118350.0,118340.0,0.30342531]
[1753863068615,0.99854718,118350.0,118340.0,0.30342531]
[1753863068802,0.82110739,118350.0,118340.0,0.30342531]
[1753863069001,0.81265802,118350.0,118340.0,0.30342531]
[1753863070503,0.80673067,118350.0,118340.0,0.30342531]
[1753863071214,0.81518011,118350.0,118340.0,0.30342531]
[1753863072376,0.80673067,118350.0,118340.0,0.30342531]
[1753863072628,0.80673025,118350.0,118340.0,0.30342531]
[1753863072802,0.81517947,118350.0,118340.0,0.30342531]
[1753863072947,0.81517947,118350.0,118340.0,0.32439531]
[1753863074166,0.80673025,118350.0,118340.0,0.32439531]
[1753863074378,0.82955193,118350.0,118340.0,0.32439531]
[1753863074784,1.30736343,118350.0,118340.0,0.30342531]
[1753863075006,1.31982471,118350.0,118340.0,0.28042531]
[1753863075425,1.31137534,118350.0,118340.0,0.28042531]
[1753863075784,1.3337259,118350.0,118340.0,0.23042532]
[1753863076426,1.3495253,118350.0,118340.0,0.23042532]
[1753863076837,1.3495253,118350.0,118340.0,0.22942532]
[1753863077041,1.3495253,118350.0,118340.0,0.10054532]
[1753863077237,1.3495253,118350.0,118340.0,0.27826531]